Cogmind - Beta 17.1 @@@ ROGUE MODE // 2026.08.30 @ 00:14:37 Player: Somberlain Result: Self-destructed Performance ------------- Evolutions (2) 1000 Regions Visited (4) 800 Robots Destroyed (47) 235 Value Destroyed (1261) 1261 Prototype IDs (5) 100 Alien Tech Used (0) 0 Bonus (0) 0 TOTAL SCORE: 3396 Bonus ------- None Cogmind --------- Core Integrity 108/550 Matter 300/300 Energy 12/100 System Corruption 0% Temperature Cool (9) Movement Walking (190) Ox1 Location -8/Materials Parts ------- > --- POWER (1) -------- (None) > --- PROPULSION (3) --- Carbon-fiber Leg > --- UTILITY (5) ------ Improved Heat Sink Advanced Heat Sink Medium Storage Unit Improved Targeting Computer > --- WEAPON (2) ------- Ion Cannon > --- INVENTORY (10) --- Aluminum Leg Medium Matter Pod (100) Weight Redist. System Recoil Stabilizer Particle Cannon Heavy Particle Cannon Peak State ------------ > --- POWER ------------ Improved Ion Engine > --- PROPULSION ------- Aluminum Leg Carbon-fiber Leg Titanium Leg > --- UTILITY ---------- Improved Heat Sink Advanced Heat Sink Medium Storage Unit Improved Targeting Computer Improved Weapon Shielding > --- WEAPON ----------- Heavy Laser Ion Cannon > --- INVENTORY -------- Aluminum Leg Medium Matter Pod Weight Redist. System Recoil Stabilizer Particle Cannon Heavy Particle Cannon [Rating: 31] Favorites ----------- Power Improved Ion Engine Engine Improved Ion Engine Propulsion Aluminum Leg Leg Aluminum Leg Utility Medium Storage Unit Device Heat Sink Storage Medium Storage Unit Processor Targeting Computer Hackware Hacking Suite Protection Light Armor Plating Weapon Autogun Energy Gun Particle Gun Energy Cannon Heavy Particle Cannon Ballistic Gun Autogun Build | -11 -10 -9 -9 -8 ------- Run | Yrd Mat Mat Min Mat Slots Evolved 4 | . . 2 . 2 Power . | . . . . . Propulsion 1 | . . . . 1 Utility 3 | . . 2 . 1 Weapon . | . . . . . Parts Attached 46 | 6 10 17 . 13 Power 6 | 1 1 3 . 1 Engine 6 | 1 1 3 . 1 Core . | . . . . . Reactor . | . . . . . Propulsion 11 | 2 3 3 . 3 Treads . | . . . . . Leg 11 | 2 3 3 . 3 Wheel . | . . . . . Hover . | . . . . . Flight . | . . . . . Utility 14 | 1 2 6 . 5 Device 5 | . 1 2 . 2 Storage 2 | 1 1 . . . Processor 2 | . . 1 . 1 Hackware 1 | . . . . 1 Protection 4 | . . 3 . 1 Artifact . | . . . . . Weapon 15 | 2 4 5 . 4 Energy Gun 6 | . 2 3 . 1 Energy Cannon 5 | . 1 1 . 3 Ballistic Gun 4 | 2 1 1 . . Ballistic Cannon . | . . . . . Launcher . | . . . . . Special Weapon . | . . . . . Impact Weapon . | . . . . . Slashing Weapon . | . . . . . Piercing Weapon . | . . . . . Special Melee Weapon . | . . . . . Unidentified Prototypes . | . . . . . Parts Lost 15 | . 3 3 . 9 Power 5 | . 1 2 . 2 Propulsion 4 | . 1 . . 3 Utility 4 | . . 1 . 3 Weapon 2 | . 1 . . 1 Highest Loss Streak 4 | . 3 1 . 4 To Critical Strikes . | . . . . . Average Backups 3 | . . 3 6 6 Power . | . . . 1 . Propulsion . | . . . 1 . Utility 2 | . . 2 4 3 Weapon . | . . . . 1 Tool/Special . | . . . . . Unused Backups 2 | . . . . 2 Power . | . . . . . Propulsion . | . . . . . Utility 2 | . . . . 2 Weapon . | . . . . . Tool/Special . | . . . . . Average Slot Usage (%) 93 | . 92 96 100 90 Engine 9 | . 13 10 11 6 Leg 23 | . 27 21 22 22 Device 13 | . 8 18 11 11 Storage 10 | . 14 11 11 9 Processor 5 | . . 3 11 9 Hackware 1 | . . . . 4 Protection 6 | . . 7 11 8 Energy Gun 6 | . 10 9 . 3 Energy Cannon 7 | . 7 2 11 11 Ballistic Gun 7 | . 9 9 11 3 Peak Build Rating 31 | 6 8 13 12 31 Average Rating 14 | 3 7 11 12 22 On Entrance 7 | . 6 8 12 12 Avg Prop Armor Cover (%) 15 | . . . . 15 Naked Turns . | . . . . . Heaviest Build 32 | 13 20 28 28 32 Greatest Support 42 | 20 20 26 20 42 Greatest Overweight (x) 2 | . . 1 1 2 Average Overweight (x) . | . . . 1 . Largest Inventory Capacity 10 | 8 10 10 10 10 Average Capacity 9 | 6 8 10 10 10 Most Carried 10 | . 2 8 6 10 Average Carried 3 | . . 3 6 6 Final Capacity 10 | 8 10 10 10 10 Final Carried 6 | . 2 6 6 6 Class Distribution -------------------- 86% | Scavenger-Mutant 13% | Mutant Dominant Class ---------------- Scavenger-Mutant | -10/Materials Scavenger-Mutant | -9/Materials Scavenger-Mutant | -9/Mines Scavenger-Mutant | -8/Materials Resources | -11 -10 -9 -9 -8 ----------- Run | Yrd Mat Mat Min Mat Matter Collected 1034 | 232 177 359 . 266 Remotely . | . . . . . Salvage Created 1591 | . 313 386 . 892 Parts 85 | . 26 28 . 31 Haulers Intercepted 1 | . 1 . . . Recyclers Shooed 1 | . . . . 1 Parts Field Recycled . | . . . . . Retrieved Matter . | . . . . . Parts Self-Destructed . | . . . . . Prevented . | . . . . . Parts Restored . | . . . . . Kills | -11 -10 -9 -9 -8 ------- Run | Yrd Mat Mat Min Mat Combat Hostiles Destroyed 39 | . 8 15 . 16 Guns 26 | . 7 15 . 4 Cannons 12 | . 1 . . 11 Classes Destroyed 9 | . 5 2 . 2 Worker 1 | . . . . 1 Hauler 1 | . 1 . . . Recycler 1 | . . . . 1 Operator 2 | . 1 . . 1 Watcher 3 | . 3 . . . Swarmer 17 | . 6 10 . 1 Grunt 17 | . 2 2 . 13 Brawler 1 | . . 1 . . Sentry 4 | . . 2 . 2 Best Kill Streak 7 | . 6 7 . 5 Combat Bots Only 7 | . 5 7 . 5 Max Kills in Single Turn 2 | . 1 2 . 2 Gunslinging 1 | . . 1 . . Exploded . | . . . . . Melee . | . . . . . Uniques/NPCs Destroyed . | . . . . . Combat | -11 -10 -9 -9 -8 -------- Run | Yrd Mat Mat Min Mat Hostile Shots Fired 322 | . 75 91 . 156 Missed 102 | . 22 31 . 49 Hits 220 | . 53 60 . 107 Melee 7 | . . 2 . 5 Projectile 213 | . 53 58 . 102 Critical Strikes 8 | . 3 . . 5 Damage Taken 2927 | . 597 645 . 1685 Core 646 | . 88 116 . 442 Absorbed by Shields . | . . . . . Redirected to Shielding 109 | . . 4 . 105 Regen/Repaired (Parts) 79 | . . 79 . . Core Remaining (%) 78 | 100 64 . 71 . Volleys Fired 131 | . 30 41 . 60 Largest 2 | . 2 2 . 2 Hottest 144 | . 125 91 . 144 Shots Fired 248 | . 58 79 . 111 Gun 171 | . 49 77 . 45 Cannon 77 | . 9 2 . 66 Launcher . | . . . . . Special . | . . . . . Kinetic 97 | . 40 36 . 21 Thermal 139 | . 18 31 . 90 Explosive . | . . . . . Electromagnetic 12 | . . 12 . . Robot Hit Streak 12 | . 5 10 . 12 Robot Miss Streak 6 | . 5 6 . 5 Penetration Max . | . . . . . Secondary Targets 7 | . 4 3 . . Max Gunslinging Chain 1 | . 1 1 . . Shots Hit Robots 152 | . 30 48 . 74 Core Hits 72 | . 20 20 . 32 Critical Kills 1 | . . . . 1 Critical Parts Destroyed . | . . . . . Critical Strikes 4 | . . 1 . 3 Burn 3 | . . 1 . 2 Meltdown 1 | . . . . 1 Melee Attacks . | . . . . . Impact . | . . . . . Slashing . | . . . . . Piercing . | . . . . . Sneak Attacks . | . . . . . Combat Hostiles . | . . . . . Follow-up Attacks . | . . . . . Damage Inflicted 2915 | . 373 770 . 1772 Guns 1577 | . 304 715 . 558 Cannons 1320 | . 69 41 . 1210 Explosions . | . . . . . Melee . | . . . . . Ramming 18 | . . 14 . 4 Kinetic 755 | . 213 362 . 180 Thermal 2102 | . 160 354 . 1588 Explosive . | . . . . . Electromagnetic 40 | . . 40 . . Impact . | . . . . . Slashing . | . . . . . Piercing . | . . . . . Highest Corruption 1 | . 1 1 1 . Average Corruption 1 | . 1 1 1 . Corruption Purged . | . . . . . Corruption Blocked . | . . . . . Effects 3 | . . 2 1 . Message Errors 1 | . . 1 . . Matter Fused 1 | . . . 1 . Alerts 1 | . . 1 . . Overload Shots . | . . . . . Overflow Damage 34 | . 10 . . 24 Projectiles 34 | . 10 . . 24 Explosions . | . . . . . Melee . | . . . . . Knockbacks . | . . . . . Impact . | . . . . . Kinetic . | . . . . . Secondary . | . . . . . Self-Inflicted Damage . | . . . . . Shots . | . . . . . Rammed . | . . . . . Targets Rammed 5 | . . 2 . 3 Kicked 5 | . . 2 . 3 Crushed . | . . . . . Highest Temperature 315 | . 198 136 . 315 Average Temperature 82 | . 45 51 . 112 Received Heat Transfer 1182 | . 246 108 . 828 Effects 5 | . . . . 5 Energy Bleed 2 | . . . . 2 Interference 3 | . . . . 3 Siege Activations . | . . . . . Martial Activations . | . . . . . Shielding Activations . | . . . . . Robots Disrupted . | . . . . . Combat Hostiles . | . . . . . Robots Corrupted . | . . . . . Combat Hostiles . | . . . . . Parts Fried . | . . . . . Impact Corruptions . | . . . . . Robots Melted 1 | . . . . 1 Combat Hostiles 1 | . . . . 1 Parts Melted 9 | . 1 . . 8 Heat Transferred 3996 | . 370 888 . 2738 Parts Sabotaged . | . . . . . Parts Stolen . | . . . . . Parts Stripped . | . . . . . Power Chain Reactions . | . . . . . Alert | -11 -10 -9 -9 -8 ------- Run | Yrd Mat Mat Min Mat Maximum Alert Level 1 | . . 1 . . Low Security (%) 88 | 100 100 68 100 100 Level 1 11 | . . 31 . . Level 2 . | . . . . . Level 3 . | . . . . . Level 4 . | . . . . . Level 5 . | . . . . . High Security . | . . . . . Max Security . | . . . . . Peak Influence 263 | . 70 263 52 183 Initial 52 | . . 16 52 4 Average 94 | . 32 151 35 86 Influence Increases 1097 | . 223 440 . 434 Destroy 0b10 Robot/C 780 | . 160 300 . 320 Destroy 0b10 Robot/NC 40 | . 25 . . 15 Destroy Leader 148 | . 38 60 . 50 Successful Hack 22 | . . 18 . 4 Disable Machine 30 | . . 15 . 15 Destroy Structure 17 | . . 2 . 15 Lose Combat Pursuer 60 | . . 45 . 15 Influence Decreases 950 | . 183 344 124 299 Entered New Map 116 | . . 24 84 8 Time Decay 684 | . 153 290 40 201 Lost Part 150 | . 30 30 . 90 Squads Dispatched 3 | . . 2 . 1 Investigation 1 | . . 1 . . Extermination . | . . . . . Reinforcement 2 | . . 1 . 1 Assault . | . . . . . Garrison . | . . . . . Intercept . | . . . . . Searches Triggered . | . . . . . Construction Impeded . | . . . . . Haulers Reinforced . | . . . . . Active Scanning Responses . | . . . . . Cargo Convoy Interrupts . | . . . . . Stealth | -11 -10 -9 -9 -8 --------- Run | Yrd Mat Mat Min Mat Distress Signals 5 | . 1 . . 4 Communications Jammed . | . . . . . Distress Signals . | . . . . . Times Spotted 69 | . 13 23 . 33 Peak Tracking Total 10 | . 6 5 . 10 Tactical Retreats 3 | . . 2 . 1 Traps | -11 -10 -9 -9 -8 ------- Run | Yrd Mat Mat Min Mat Traps Triggered 1 | . 1 . . . Indirectly . | . . . . . Trap Hack Attempts . | . . . . . Triggered . | . . . . . Disarmed . | . . . . . Reprogrammed . | . . . . . Reused . | . . . . . Traps Extracted . | . . . . . Installed . | . . . . . Triggered . | . . . . . Machines | -11 -10 -9 -9 -8 ---------- Run | Yrd Mat Mat Min Mat Machines Disabled 2 | . . 1 . 1 Max in Single Turn 1 | . . 1 . 1 Machines Repaired . | . . . . . Machines Dismantled . | . . . . . Machines Sabotaged . | . . . . . Overloaded Fab Kills . | . . . . . Hacking | -11 -10 -9 -9 -8 --------- Run | Yrd Mat Mat Min Mat Machines Accessed 7 | . 2 3 . 2 Terminals 3 | . 1 1 . 1 Fabricators . | . . . . . Repair Stations 3 | . 1 1 . 1 Recycling Units . | . . . . . Scanalyzers 1 | . . 1 . . Garrison Access . | . . . . . Total Hacks 19 | . 3 11 . 5 Successful 10 | . . 8 . 2 Failed 9 | . 3 3 . 3 Catastrophic . | . . . . . Database Lockouts . | . . . . . Manual 1 | . . 1 . . Terminals 5 | . 1 2 . 2 Fabricators . | . . . . . Repair Stations 9 | . 2 4 . 3 Recycling Units . | . . . . . Scanalyzers 5 | . . 5 . . Garrison Access . | . . . . . Terminal Hacks 2 | . . 1 . 1 Prototype ID Bank 2 | . . 1 . 1 Fabricator Hacks . | . . . . . Repair Station Hacks 4 | . . 3 . 1 Scan Component 3 | . . 2 . 1 Repair 1 | . . 1 . . Recycling Unit Hacks . | . . . . . Scanalyzer 4 | . . 4 . . Retrieve Study 4 | . . 4 . . Garrison Access Hacks . | . . . . . Unauthorized Hacks . | . . . . . Terminals . | . . . . . Fabricators . | . . . . . Repair Stations . | . . . . . Recycling Units . | . . . . . Scanalyzers . | . . . . . Garrison Access . | . . . . . Data Cores Recovered 1 | . 1 . . . Used . | . . . . . Hacking Detections 6 | . 2 2 . 2 Full Trace Events 1 | . . 1 . . Feedback Events 1 | . . 1 . . Corruption 1 | . . 1 . . Feedback Blocked . | . . . . . Robot Schematics Acquired . | . . . . . Robots Built . | . . . . . Authchips . | . . . . . Time . | . . . . . Total Robot Build Rating . | . . . . . Part Schematics Acquired . | . . . . . Parts Built . | . . . . . Authchips . | . . . . . Time . | . . . . . Total Part Build Rating . | . . . . . Part Studies Acquired 4 | . . 4 . . Parts Repaired 1 | . . 1 . . Time 26 | . . 26 . . Parts Recycled . | . . . . . Recycled Matter . | . . . . . Retrieved Matter . | . . . . . Retrieved Components . | . . . . . Parts Scanalyzed . | . . . . . Part Schematics Acquired . | . . . . . Parts Damaged . | . . . . . Bothacking | -11 -10 -9 -9 -8 ------------ Run | Yrd Mat Mat Min Mat Used RIF Installer . | . . . . . Robots Hacked . | . . . . . Non-combat . | . . . . . Combat . | . . . . . Robot Hacks Applied . | . . . . . Relay Couplers Released . | . . . . . Fabnet Peak Effective % . | . . . . . Robots Rewired . | . . . . . Allies Hacked . | . . . . . Hacks Repelled . | . . . . . Allies | -11 -10 -9 -9 -8 -------- Run | Yrd Mat Mat Min Mat Total Allies . | . . . . . Largest Group . | . . . . . Highest-Rated Group . | . . . . . Highest-Rated Ally . | . . . . . Total Orders . | . . . . . Ally Attacks . | . . . . . Total Damage . | . . . . . Kills . | . . . . . Allies Corrupted . | . . . . . Allies Melted . | . . . . . Intel | -11 -10 -9 -9 -8 ------- Run | Yrd Mat Mat Min Mat Active Infowar (turns) . | . . . . . Robot Analysis Total . | . . . . . Derelict Logs Recovered . | . . . . . Drone Launches . | . . . . . Drone Recoveries . | . . . . . Exploration | -11 -10 -9 -9 -8 ------------- Run | Yrd Mat Mat Min Mat Turns Passed 1708 | 59 350 649 83 567 Spaces Moved 898 | 45 207 368 48 230 Core 5 | 5 . . . . Treads . | . . . . . Legs 893 | 40 207 368 48 230 Wheels . | . . . . . Hover . | . . . . . Flight . | . . . . . Fastest Speed 50 | 50 120 105 175 105 Average Speed 131 | 112 120 126 175 143 Slowest Speed 245 | 120 120 190 175 245 Overloaded Moves . | . . . . . Propulsion Burnouts . | . . . . . Robots Hopped . | . . . . . Potential Cave-ins . | . . . . . Cave-ins Triggered . | . . . . . Exploration Rate (%) 25 | 3 52 32 12 28 Regions Visited 4 Branch Regions 1 Pre-discovered Areas 1 | . . . 1 . Known Exits Taken . | . . . . . Unknown Exits Taken 4 | 1 1 1 1 . Scrap Searched . | . . . . . Spaces Dug . | . . . . . Terrain Destroyed 12 | . . . . 12 Melee . | . . . . . Projectile 12 | . . . . 12 AOE . | . . . . . Terrain Rammed . | . . . . . Walls Destroyed . | . . . . . Machines Disabled . | . . . . . Actions | -11 -10 -9 -9 -8 --------- Run | Yrd Mat Mat Min Mat Total 1173 | 50 252 471 47 353 Wait 73 | . 3 32 . 38 Move 894 | 44 206 367 47 230 Hop . | . . . . . Pick Up 5 | . 1 3 . 1 Fast Attach 22 | 6 4 7 . 5 Attach 3 | . . 1 . 2 Detach 3 | . . 2 . 1 Swap 25 | . 6 11 . 8 Drop 12 | . 2 5 . 5 Fire 131 | . 30 41 . 60 Melee . | . . . . . Ram . | . . . . . Kick 5 | . . 2 . 3 Crush . | . . . . . Escape Stasis . | . . . . . Rewire . | . . . . . Trap . | . . . . . Miscellaneous . | . . . . . Route ------- -11/Scrapyard -10/Materials (discovered 2 exits: *Mat / [*Min]) -9/Materials (discovered 2 exits: *Mat / [*Min]) -9/Mines -8/Materials History --------- Turn | Location | Event 3 | -11/Scrapyard | Discovered new exit (range 15) 60 | -11/Scrapyard | Entered Materials 181 | -10/Materials | Lost 3 parts (1p1n1w) 187 | -10/Materials | Discovered new exit (range 16) 337 | -10/Materials | Discovered new exit (range 8) 410 | -10/Materials | Entered another Materials area 410 | -9/Materials | Evolved 2 slots: Utility x2 585 | -9/Materials | Build established: Scavenger-Mutant 592 | -9/Materials | Discovered new exit (range 10) 671 | -9/Materials | Discovered new exit (range 7) 694 | -9/Materials | Destroyed 7 combat bots 996 | -9/Materials | Repaired Aluminum Leg+ 1059 | -9/Materials | Entered Mines 1060 | -9/Mines | Learned location of Storage (-8) 1121 | -9/Mines | Discovered new exit (range 7) 1142 | -9/Mines | Entered Materials 1142 | -8/Materials | Evolved 2 slots: Propulsion x1, Utility x1 1592 | -8/Materials | Core integrity fell below 50% 1709 | -8/Materials | Self-destructed Last Messages --------------- 01667_ K-01 Serf cleans the Atomic Centrifuge. 01671_ K-01 Serf collects debris. 01674_ R-06 Scavenger collects Lgt. Nuclear Core. 01675_ Aluminum Leg+ destroyed. 01675_ U-05 Engineer builds a Door. 01675_ W-25 Informer sends out distress signal. 01676_ K-01 Serf collects debris. 01681_ Imp. Weapon Shielding destroyed. 01681_ K-01 Serf collects debris. 01686_ Titanium Leg destroyed. 01690_ Kicked G-47 Trooper. 01690_ K-01 Serf cleans the Terminal. 01692_ Kicked G-47 Trooper. 01694_ K-01 Serf cleans the Terminal. 01698_ G-47 Trooper destroyed. 01703_ K-01 Serf cleans the Terminal. 01706_ K-01 Serf collects debris. 01706_ K-01 Serf cleans the Terminal. 01709_ Ion Cannon destroyed. Map ----- +----------------------------------------------------+ | ???????????????????????????????????# ?????# # | | ???????????????????????????????????? ?????# # | | ???????????????????????????????????? ?????# # | | ???????????????????????????????????? ?????# ! # | | ???????????????????????????????????? #????###### | | ????????????????????????????????????? #?????#! | | ????????????????????????????????????? #?????# | | ????????????????????????????????????? #?????# ! | | ?????????????????????????????????????# #?????# !! | | ?????????????????????????????????????# #?????# | | ?????????????????????????????????????#%#?????# [ | | ??????????????????????????????######## #####?##### | | ??????????????????????????????# T #% ####### | | ??????????????????????????????# # " | | ??????????????????????????????# *=* + | | ??????????????????????????????# ! #% | | ??????????????????????????????# # %###/### | | ??????????????????????????????# """ ## ##? ?# | | ??????????????????????????????# """ ## ##? ?? | | ??????????????????????????????# """ ## #?# # | | ??????????????????????????????# ## %#?# # | | ??????????????????????????????# ## #?# # | | ??????????????????????????????# ## #?# !# | | ??????????????????????????????######### ######## | | ?????????????????##################### % | | ?????????? a g @l=%gg w ak % | | ?????????????????##############k w T ! | | ??????????????????????????????# %! # ! | | ??????????????????????????????####+### # | | ??????????????????????????????# = ####### | | ??????????????????????????????# """ #????## | | ??????????????????????????????# """ ####### | | ??????????????????????????????# """ / % | | ??????????????????????????????# ####### | | ??????????????????????????????# #?????# ### | | ??????????????????????????????########?????# #?? | | ???????????????????????????????????????????# #?? | | ???????????????????????????????????????????# #?? | | ???????????????????????????????????????????# #?? | | ???????????????????????????????????????????# ??? | | ???????????????????????????????????????????# ??? | | ???????????????????????????????????????????? ??? | | ?????????????????????????????????????????????????? | | ?????????????????????????????????????????????????? | | ?????????????????????????????????????????????????? | | ?????????????????????????????????????????????????? | | ?????????????????????????????????????????????????? | | ?????????????????????????????????????????????????? | | ?????????????????????????????????????????????????? | | ?????????????????????????????????????????????????? | +----------------------------------------------------+ Best States ------------- Heat Dissipation 64 Energy Generation 18 Energy Capacity 265 Matter Stores 300 Matter Capacity 300 Sight Range 16 Terrain Scan Density 10 Additional Mass Support 6 Armor Coverage 150 Core Shielding 20 Weapon Shielding 66 Evasion (%) 55 Targeting Accuracy 6 Offensive Hacking 10 Item Schematics ----------------- None Robot Schematics ------------------ None Fabricated ------------ Nothing Repaired ---------- Aluminum Leg | 12% | -9/Materials Studied --------- Aluminum Leg | -9/Materials | Hacked Autogun | -9/Materials | Hacked Particle Gun | -9/Materials | Hacked Lgt. Ion Engine | -9/Materials | Hacked Alien Tech Used ----------------- None Achievements -------------- None Challenges ------------ None Game ------ Seed SpreadThiefDistortion Manual? 0 Play Time 00:17:49 Cumulative 38.5 hours Start 2026.08.29 @ 23:58:06 End 2026.08.30 @ 00:14:37 Sessions 1 Manual Loads 0 Difficulty Rogue Special Mode None Game No. 59 Rogue 59 Adventurer 0 Explorer 0 Win Type - Total 0 Types 0/0/0/0/0/0/0/0/0/0 Lore% 29 Gallery% 30 Achievement% 27 Wizard Run 0 Options --------- Layout 1 ASCII 0 Keyboard 0 Movement Mouse Keybinds 0 Fullscreen 2 Font 24/Smallcaps Map View 50x35 Zoom Use 0% Tactical HUD 1 Map Filters NONE Filters NONE Steam 1 RUN: 8a47f563-24a6-47fb-a1dd-39a2cfd9aea0